fUST/lending_fUST_20260527
["ID","MTS","AMOUNT","RATE_DAILY","PERIOD"]
[423090224,1779834638000,-300.0,6.582e-05,2]
[423090221,1779834638000,-300.0,6.582e-05,2]
[423090220,1779834638000,-300.0,6.582e-05,2]
[423090218,1779834638000,-300.0,6.582e-05,2]
[423090213,1779834638000,-300.0,6.582e-05,2]
[423090211,1779834638000,-169.0,6.01e-05,2]
[423090214,1779834638000,-300.0,6.582e-05,2]
[423090210,1779834638000,-479.80795149,5.982e-05,2]
[423090212,1779834638000,-300.0,6.582e-05,2]
[423090215,1779834638000,-300.0,6.582e-05,2]
[423090204,1779834638000,-500.0,5.891e-05,2]
[423090208,1779834638000,-518.14477582,5.891e-05,2]
[423090207,1779834638000,-500.0,5.891e-05,2]
[423090205,1779834638000,-650.73270984,5.891e-05,2]
[423090217,1779834638000,-300.0,6.582e-05,2]
[423090206,1779834638000,-500.0,5.891e-05,2]
[423090216,1779834638000,-300.0,6.582e-05,2]
[423090202,1779834638000,-500.0,5.891e-05,2]
[423090201,1779834638000,-2512.15212264,5.833e-05,2]
[423090203,1779834638000,-500.0,5.891e-05,2]
[423090223,1779834638000,-300.0,6.582e-05,2]
[423090209,1779834638000,-5000.0,5.892e-05,2]
[423090219,1779834638000,-300.0,6.582e-05,2]
[423090237,1779834638000,-208.83310533,6.706e-05,2]
[423090229,1779834638000,-500.0,6.706e-05,2]
[423090246,1779834638000,-19748.29585799,8.119e-05,2]
[423090247,1779834638000,-1038727.44331672,8.119e-05,2]
[423090245,1779834638000,-1947.02828019,8.119e-05,2]
[423090241,1779834638000,-350.795,6.713e-05,2]
[423090236,1779834638000,-500.0,6.706e-05,2]
[423090234,1779834638000,-500.0,6.706e-05,2]
[423090239,1779834638000,-500.0,6.706e-05,2]
[423090242,1779834638000,-720.0,7.384e-05,2]
[423090231,1779834638000,-500.0,6.706e-05,2]
[423090240,1779834638000,-600.0,6.713e-05,2]
[423090238,1779834638000,-500.0,6.706e-05,2]
[423090232,1779834638000,-500.0,6.706e-05,2]
[423090244,1779834638000,-77014.57868606,8.119e-05,2]
[423090243,1779834638000,-566.17338276,7.982e-05,2]
[423090233,1779834638000,-500.0,6.706e-05,2]
[423090225,1779834638000,-300.0,6.582e-05,2]
[423090230,1779834638000,-500.0,6.706e-05,2]
[423090228,1779834638000,-500.0,6.706e-05,2]
[423090222,1779834638000,-300.0,6.582e-05,2]
[423090226,1779834638000,-300.0,6.582e-05,2]
[423090227,1779834638000,-500.0,6.706e-05,2]
[423090235,1779834638000,-500.0,6.706e-05,2]
[423090248,1779834638000,-12913.79060295,8.119e-05,2]
[423090256,1779834641000,-11480.38179865,8.119e-05,2]
[423090257,1779834641000,-4639.7776495,8.119e-05,2]
[423090258,1779834641000,-43147.616,8.119e-05,2]
[423090312,1779834646000,-21122.47285883,8.119e-05,2]
[423090313,1779834802000,165.0,0.00014686,30]
[423090315,1779834983000,159.0,0.00014454,30]
[423090316,1779835162000,159.0,0.00014454,30]
[423090317,1779835462000,157.0,0.00014454,30]
[423090318,1779835746000,162.14236869,0.000175,120]
[423090321,1779835825000,178.0,0.00014454,30]
[423090349,1779835831000,-670.35363149,7.054e-05,2]
[423090352,1779835831000,-5000.0,7.125e-05,2]
[423090351,1779835831000,-279.79386398,7.124e-05,2]
[423090356,1779835831000,-1200.0,7.717e-05,2]
[423090354,1779835831000,-458.8883248,7.233e-05,2]
[423090368,1779835832000,-500.0,7.718e-05,2]
[423090370,1779835832000,-500.0,7.718e-05,2]
[423090360,1779835832000,-500.0,7.718e-05,2]
[423090372,1779835832000,-500.0,7.718e-05,2]
[423090362,1779835832000,-500.0,7.718e-05,2]
[423090358,1779835832000,-500.0,7.718e-05,2]
[423090364,1779835832000,-500.0,7.718e-05,2]
[423090366,1779835832000,-500.0,7.718e-05,2]
[423090374,1779835832000,-500.0,7.718e-05,2]
[423090384,1779835832000,-421.41565744,7.718e-05,2]
[423090389,1779835832000,-89.90729319,7.718e-05,2]
[423090378,1779835832000,-500.0,7.718e-05,2]
[423090376,1779835832000,-500.0,7.718e-05,2]
[423090386,1779835832000,-500.0,7.718e-05,2]
[423090380,1779835832000,-500.0,7.718e-05,2]
[423090388,1779835832000,-500.0,7.718e-05,2]
[423090382,1779835832000,-500.0,7.718e-05,2]
[423090793,1779835838000,-20620.22909644,7.719e-05,2]
[423090791,1779835838000,-410.09270681,7.718e-05,2]
[423090789,1779835838000,-102.84450216,7.641e-05,2]
[423090787,1779835838000,-4897.15549784,7.641e-05,2]
[423090953,1779835840000,-4865.12127409,7.719e-05,2]
[423090970,1779835844000,-1715.15928396,7.719e-05,2]
[423091092,1779835847000,-5773.44007448,7.719e-05,2]
[423091090,1779835847000,-776.39520267,7.719e-05,2]
[423091098,1779836122000,173.0,0.00014454,30]
[423091099,1779836330000,152.0,0.00014547,30]
[423091106,1779836492000,199.0,0.00014686,30]
[423091105,1779836492000,-5000.0,7.174e-05,2]
[423091115,1779836780000,175.0,0.00014558,30]
[423091158,1779837033000,-487.4673752,6.925e-05,2]
[423091156,1779837033000,-511.21216583,6.925e-05,2]
[423091161,1779837033000,-549.22831073,6.926e-05,2]
[423091151,1779837033000,-5000.0,6.857e-05,2]
[423091154,1779837033000,-201.32045897,6.925e-05,2]
[423091163,1779837033000,-4450.77168927,6.926e-05,2]
[423091165,1779837033000,-469.27055831,7.032e-05,2]
[423091171,1779837034000,-454.43896009,7.5e-05,2]
[423091169,1779837034000,-270.53339199,7.5e-05,2]
[423091167,1779837034000,-280.636,7.467e-05,2]
[423091175,1779837034000,-534.23349101,7.5e-05,2]
[423091183,1779837034000,-500.0,7.517e-05,2]
[423091181,1779837034000,-466.70647862,7.517e-05,2]
[423091176,1779837034000,-500.0,7.517e-05,2]
[423091173,1779837034000,-495.91187766,7.5e-05,2]
[423091178,1779837034000,-500.0,7.517e-05,2]
[423091185,1779837034000,-500.0,7.517e-05,2]
[423091189,1779837034000,-500.0,7.517e-05,2]
[423091191,1779837034000,-500.0,7.517e-05,2]
[423091193,1779837034000,-500.0,7.517e-05,2]
[423091197,1779837034000,-393.38360023,7.517e-05,2]
[423091195,1779837034000,-106.61639977,7.517e-05,2]
[423091201,1779837034000,-500.0,7.517e-05,2]
[423091199,1779837034000,-500.0,7.517e-05,2]
[423091203,1779837034000,-12878.04998922,7.519e-05,2]
[423091187,1779837034000,-500.0,7.517e-05,2]
[423091561,1779837038000,-152.135008,8.219e-05,2]
[423091563,1779837038000,-152.135008,8.219e-05,2]
[423091551,1779837038000,-152.135008,8.219e-05,2]
[423091565,1779837038000,-152.135008,8.219e-05,2]
[423091566,1779837038000,-152.135008,8.219e-05,2]
[423091555,1779837038000,-152.135008,8.219e-05,2]
[423091557,1779837038000,-152.135008,8.219e-05,2]
[423091570,1779837038000,-152.135008,8.219e-05,2]
[423091548,1779837038000,-152.135008,8.219e-05,2]
[423091553,1779837038000,-152.135008,8.219e-05,2]
[423091559,1779837038000,-152.135008,8.219e-05,2]
[423091535,1779837038000,-163.09729822,8.214e-05,2]
[423091544,1779837038000,-152.135008,8.219e-05,2]
[423091541,1779837038000,-500.0,8.219e-05,2]
[423091542,1779837038000,-152.135008,8.219e-05,2]
[423091539,1779837038000,-500.0,8.219e-05,2]
[423091529,1779837038000,-112234.9574039,7.519e-05,2]
[423091536,1779837038000,-233.23247172,8.214e-05,2]
[423091531,1779837038000,-1180.0,7.618e-05,2]
[423091533,1779837038000,-456.6596809,7.629e-05,2]
[423091527,1779837038000,-14831.95001079,7.519e-05,2]
[423091568,1779837038000,-152.135008,8.219e-05,2]
[423091546,1779837038000,-152.135008,8.219e-05,2]
[423091582,1779837038000,-500.0,8.219e-05,2]
[423091595,1779837038000,-152.135008,8.219e-05,2]
[423091574,1779837038000,-500.0,8.219e-05,2]
[423091587,1779837038000,-415.15288562,8.219e-05,2]
[423091628,1779837038000,-500.0,8.219e-05,2]
[423091624,1779837038000,-500.0,8.219e-05,2]
[423091622,1779837038000,-500.0,8.219e-05,2]
[423091620,1779837038000,-500.0,8.219e-05,2]
[423091618,1779837038000,-500.0,8.219e-05,2]
[423091616,1779837038000,-110.99042143,8.219e-05,2]
[423091613,1779837038000,-389.00957857,8.219e-05,2]
[423091599,1779837038000,-152.135008,8.219e-05,2]
[423091611,1779837038000,-500.0,8.219e-05,2]
[423091607,1779837038000,-500.0,8.219e-05,2]
[423091626,1779837038000,-500.0,8.219e-05,2]
[423091603,1779837038000,-635.42881924,8.219e-05,2]
[423091597,1779837038000,-629.44,8.219e-05,2]
[423091572,1779837038000,-152.135008,8.219e-05,2]
[423091576,1779837038000,-152.135008,8.219e-05,2]
[423091589,1779837038000,-500.0,8.219e-05,2]
[423091593,1779837038000,-419.26158938,8.219e-05,2]
[423091584,1779837038000,-500.0,8.219e-05,2]
[423091601,1779837038000,-500.0,8.219e-05,2]
[423091609,1779837038000,-509.79101857,8.219e-05,2]
[423091605,1779837038000,-500.0,8.219e-05,2]
[423091591,1779837038000,-500.0,8.219e-05,2]
[423091696,1779837039000,-500.0,8.219e-05,2]
[423091677,1779837039000,-500.0,8.219e-05,2]
[423091685,1779837039000,-500.0,8.219e-05,2]
[423091681,1779837039000,-500.0,8.219e-05,2]
[423091687,1779837039000,-500.0,8.219e-05,2]
[423091689,1779837039000,-500.0,8.219e-05,2]
[423091691,1779837039000,-500.0,8.219e-05,2]
[423091702,1779837039000,-500.22658779,8.219e-05,2]
[423091683,1779837039000,-500.0,8.219e-05,2]
[423091708,1779837039000,-500.0,8.219e-05,2]
[423091692,1779837039000,-568.18437267,8.219e-05,2]
[423091704,1779837039000,-500.0,8.219e-05,2]
[423091706,1779837039000,-500.0,8.219e-05,2]
[423091699,1779837039000,-500.0,8.219e-05,2]
[423091700,1779837039000,-163.88,8.219e-05,2]
[423091710,1779837039000,-166.73327584,8.219e-05,2]
[423091714,1779837039000,-500.0,8.219e-05,2]
[423091712,1779837039000,-500.0,8.219e-05,2]
[423091679,1779837039000,-500.0,8.219e-05,2]
[423091716,1779837039000,-500.0,8.219e-05,2]
[423091694,1779837039000,-500.0,8.219e-05,2]
[423091671,1779837039000,-500.0,8.219e-05,2]
[423091646,1779837039000,-500.0,8.219e-05,2]
[423091675,1779837039000,-500.0,8.219e-05,2]
[423091717,1779837039000,-500.0,8.219e-05,2]
[423091634,1779837039000,-500.0,8.219e-05,2]
[423091630,1779837039000,-500.0,8.219e-05,2]
[423091632,1779837039000,-500.0,8.219e-05,2]
[423091636,1779837039000,-380.97945454,8.219e-05,2]
[423091638,1779837039000,-119.02054546,8.219e-05,2]
[423091648,1779837039000,-500.0,8.219e-05,2]
[423091640,1779837039000,-530.58,8.219e-05,2]
[423091651,1779837039000,-500.0,8.219e-05,2]
[423091669,1779837039000,-500.0,8.219e-05,2]
[423091652,1779837039000,-500.0,8.219e-05,2]
[423091642,1779837039000,-500.0,8.219e-05,2]
[423091659,1779837039000,-500.0,8.219e-05,2]
[423091655,1779837039000,-500.0,8.219e-05,2]
[423091657,1779837039000,-500.0,8.219e-05,2]
[423091661,1779837039000,-500.0,8.219e-05,2]
[423091663,1779837039000,-500.0,8.219e-05,2]
[423091665,1779837039000,-500.0,8.219e-05,2]
[423091667,1779837039000,-500.0,8.219e-05,2]
[423091673,1779837039000,-500.0,8.219e-05,2]
[423091644,1779837039000,-500.0,8.219e-05,2]
[423091727,1779837039000,-500.0,8.219e-05,2]
[423091751,1779837039000,-500.0,8.219e-05,2]
[423091731,1779837039000,-500.0,8.219e-05,2]
[423091769,1779837039000,-4.70343613,8.219e-05,2]
[423091780,1779837039000,-500.0,8.219e-05,2]
[423091775,1779837039000,-500.0,8.219e-05,2]
[423091783,1779837039000,-500.0,8.219e-05,2]
[423091778,1779837039000,-500.0,8.219e-05,2]
[423091782,1779837039000,-500.0,8.219e-05,2]
[423091789,1779837039000,-500.0,8.219e-05,2]
[423091787,1779837039000,-500.0,8.219e-05,2]
[423091791,1779837039000,-500.0,8.219e-05,2]
[423091785,1779837039000,-500.0,8.219e-05,2]
[423091794,1779837039000,-500.0,8.219e-05,2]
[423091798,1779837039000,-500.0,8.219e-05,2]
[423091802,1779837039000,-500.0,8.219e-05,2]
[423091806,1779837039000,-398.60235468,8.219e-05,2]
[423091808,1779837039000,-101.39764532,8.219e-05,2]
[423091804,1779837039000,-500.0,8.219e-05,2]
[423091796,1779837039000,-500.0,8.219e-05,2]
[423091800,1779837039000,-500.0,8.219e-05,2]
[423091812,1779837039000,-235.33406165,8.219e-05,2]
[423091729,1779837039000,-500.0,8.219e-05,2]
[423091793,1779837039000,-500.0,8.219e-05,2]
[423091773,1779837039000,-500.0,8.219e-05,2]
[423091777,1779837039000,-806.68,8.219e-05,2]
[423091771,1779837039000,-500.0,8.219e-05,2]
[423091733,1779837039000,-500.0,8.219e-05,2]
[423091735,1779837039000,-500.0,8.219e-05,2]
[423091721,1779837039000,-500.0,8.219e-05,2]
[423091723,1779837039000,-500.0,8.219e-05,2]
[423091767,1779837039000,-495.29656387,8.219e-05,2]
[423091725,1779837039000,-500.0,8.219e-05,2]
[423091737,1779837039000,-500.0,8.219e-05,2]
[423091739,1779837039000,-500.0,8.219e-05,2]
[423091810,1779837039000,-500.0,8.219e-05,2]
[423091741,1779837039000,-288.30817495,8.219e-05,2]
[423091761,1779837039000,-500.0,8.219e-05,2]
[423091719,1779837039000,-500.0,8.219e-05,2]
[423091749,1779837039000,-500.0,8.219e-05,2]
[423091743,1779837039000,-500.0,8.219e-05,2]
[423091747,1779837039000,-500.0,8.219e-05,2]
[423091759,1779837039000,-500.0,8.219e-05,2]
[423091763,1779837039000,-500.0,8.219e-05,2]
[423091755,1779837039000,-622.2,8.219e-05,2]
[423091745,1779837039000,-500.0,8.219e-05,2]
[423091757,1779837039000,-500.0,8.219e-05,2]
[423091765,1779837039000,-500.0,8.219e-05,2]
[423091753,1779837039000,-500.0,8.219e-05,2]
[423091922,1779837040000,-264.66593835,8.219e-05,2]
[423091925,1779837040000,-500.0,8.219e-05,2]
[423091923,1779837040000,-500.0,8.219e-05,2]
[423091926,1779837040000,-11.46764209,8.219e-05,2]
[423091924,1779837040000,-500.0,8.219e-05,2]
[423092034,1779837046000,-427.86150411,8.219e-05,2]
[423092032,1779837046000,-500.0,8.219e-05,2]
[423092038,1779837046000,-536.4,8.219e-05,2]
[423092028,1779837046000,-500.0,8.219e-05,2]
[423092030,1779837046000,-500.0,8.219e-05,2]
[423092026,1779837046000,-488.53235791,8.219e-05,2]
[423092031,1779837046000,-500.0,8.219e-05,2]
[423092029,1779837046000,-500.0,8.219e-05,2]
[423092027,1779837046000,-500.0,8.219e-05,2]
[423092039,1779837046000,-500.0,8.219e-05,2]
[423092033,1779837046000,-500.0,8.219e-05,2]
[423092043,1779837046000,-500.0,8.219e-05,2]
[423092046,1779837046000,-500.0,8.219e-05,2]
[423092048,1779837046000,-218.64778485,8.219e-05,2]
[423092037,1779837046000,-500.0,8.219e-05,2]
[423092042,1779837046000,-596.10476254,8.219e-05,2]
[423092035,1779837046000,-500.0,8.219e-05,2]
[423092044,1779837046000,-500.0,8.219e-05,2]
[423092036,1779837046000,-500.0,8.219e-05,2]
[423092045,1779837046000,-500.0,8.219e-05,2]
[423092047,1779837046000,-281.35221515,8.219e-05,2]
[423092041,1779837046000,-500.0,8.219e-05,2]
[423092040,1779837046000,-500.0,8.219e-05,2]
[423092098,1779837047000,-500.0,8.219e-05,2]
[423092092,1779837047000,-500.0,8.219e-05,2]
[423092093,1779837047000,-568.87424883,8.219e-05,2]
[423092091,1779837047000,-500.0,8.219e-05,2]
[423092100,1779837047000,-500.0,8.219e-05,2]
[423092089,1779837047000,-500.0,8.219e-05,2]
[423092085,1779837047000,-500.0,8.219e-05,2]
[423092096,1779837047000,-500.0,8.219e-05,2]
[423092086,1779837047000,-360.97986297,8.219e-05,2]
[423092077,1779837047000,-500.0,8.219e-05,2]
[423092099,1779837047000,-190.3,8.219e-05,2]
[423092084,1779837047000,-500.0,8.219e-05,2]
[423092078,1779837047000,-500.0,8.219e-05,2]
[423092102,1779837047000,-500.0,8.219e-05,2]
[423092097,1779837047000,-500.0,8.219e-05,2]
[423092106,1779837047000,-500.0,8.219e-05,2]
[423092095,1779837047000,-500.0,8.219e-05,2]
[423092103,1779837047000,-500.40629766,8.219e-05,2]
[423092114,1779837047000,-500.0,8.219e-05,2]
[423092112,1779837047000,-500.0,8.219e-05,2]
[423092111,1779837047000,-500.0,8.219e-05,2]
[423092107,1779837047000,-500.0,8.219e-05,2]
[423092116,1779837047000,-500.0,8.219e-05,2]
[423092094,1779837047000,-500.0,8.219e-05,2]
[423092105,1779837047000,-500.0,8.219e-05,2]
[423092115,1779837047000,-500.0,8.219e-05,2]
[423092110,1779837047000,-500.0,8.219e-05,2]
[423092108,1779837047000,-500.0,8.219e-05,2]
[423092083,1779837047000,-500.0,8.219e-05,2]
[423092101,1779837047000,-500.0,8.219e-05,2]
[423092090,1779837047000,-500.0,8.219e-05,2]
[423092109,1779837047000,-500.0,8.219e-05,2]
[423092088,1779837047000,-500.0,8.219e-05,2]
[423092079,1779837047000,-500.0,8.219e-05,2]
[423092082,1779837047000,-500.0,8.219e-05,2]
[423092050,1779837047000,-500.0,8.219e-05,2]
[423092049,1779837047000,-500.0,8.219e-05,2]
[423092051,1779837047000,-500.0,8.219e-05,2]
[423092053,1779837047000,-500.0,8.219e-05,2]
[423092061,1779837047000,-500.0,8.219e-05,2]
[423092059,1779837047000,-500.0,8.219e-05,2]
[423092060,1779837047000,-500.0,8.219e-05,2]
[423092052,1779837047000,-500.0,8.219e-05,2]
[423092057,1779837047000,-500.0,8.219e-05,2]
[423092055,1779837047000,-531.40014633,8.219e-05,2]
[423092056,1779837047000,-500.0,8.219e-05,2]
[423092054,1779837047000,-500.0,8.219e-05,2]
[423092058,1779837047000,-500.0,8.219e-05,2]
[423092068,1779837047000,-500.0,8.219e-05,2]
[423092071,1779837047000,-500.0,8.219e-05,2]
[423092063,1779837047000,-500.0,8.219e-05,2]
[423092074,1779837047000,-500.0,8.219e-05,2]
[423092080,1779837047000,-500.0,8.219e-05,2]
[423092075,1779837047000,-500.0,8.219e-05,2]
[423092087,1779837047000,-500.0,8.219e-05,2]
[423092081,1779837047000,-500.0,8.219e-05,2]
[423092076,1779837047000,-500.0,8.219e-05,2]
[423092072,1779837047000,-500.0,8.219e-05,2]
[423092113,1779837047000,-500.0,8.219e-05,2]
[423092070,1779837047000,-500.0,8.219e-05,2]
[423092066,1779837047000,-500.0,8.219e-05,2]
[423092064,1779837047000,-500.0,8.219e-05,2]
[423092067,1779837047000,-500.0,8.219e-05,2]
[423092073,1779837047000,-500.0,8.219e-05,2]
[423092065,1779837047000,-500.0,8.219e-05,2]
[423092062,1779837047000,-500.0,8.219e-05,2]
[423092069,1779837047000,-500.0,8.219e-05,2]
[423092104,1779837047000,-290.79493899,8.219e-05,2]
[423092151,1779837047000,-512.76,8.219e-05,2]
[423092130,1779837047000,-500.0,8.219e-05,2]
[423092155,1779837047000,-500.0,8.219e-05,2]
[423092154,1779837047000,-500.0,8.219e-05,2]
[423092156,1779837047000,-293.41706525,8.219e-05,2]
[423092172,1779837047000,-500.0,8.219e-05,2]
[423092161,1779837047000,-500.0,8.219e-05,2]
[423092169,1779837047000,-500.0,8.219e-05,2]
[423092170,1779837047000,-158.48,8.219e-05,2]
[423092168,1779837047000,-500.0,8.219e-05,2]
[423092162,1779837047000,-500.0,8.219e-05,2]
[423092167,1779837047000,-500.0,8.219e-05,2]
[423092163,1779837047000,-500.0,8.219e-05,2]
[423092166,1779837047000,-500.0,8.219e-05,2]
[423092164,1779837047000,-500.0,8.219e-05,2]
[423092160,1779837047000,-500.0,8.219e-05,2]
[423092171,1779837047000,-501.47277069,8.219e-05,2]
[423092165,1779837047000,-500.0,8.219e-05,2]
[423092184,1779837047000,-500.0,8.219e-05,2]
[423092124,1779837047000,-500.0,8.219e-05,2]
[423092182,1779837047000,-500.0,8.219e-05,2]
[423092178,1779837047000,-500.0,8.219e-05,2]
[423092181,1779837047000,-500.0,8.219e-05,2]
[423092183,1779837047000,-500.0,8.219e-05,2]
[423092179,1779837047000,-500.0,8.219e-05,2]
[423092153,1779837047000,-500.0,8.219e-05,2]
[423092180,1779837047000,-500.0,8.219e-05,2]
[423092186,1779837047000,-500.0,8.219e-05,2]
[423092185,1779837047000,-500.0,8.219e-05,2]
[423092173,1779837047000,-263.4087889,8.219e-05,2]
[423092174,1779837047000,-510.12,8.219e-05,2]
[423092176,1779837047000,-502.34078773,8.219e-05,2]
[423092175,1779837047000,-500.0,8.219e-05,2]
[423092177,1779837047000,-500.0,8.219e-05,2]
[423092152,1779837047000,-500.0,8.219e-05,2]
[423092159,1779837047000,-251.21265944,8.219e-05,2]
[423092150,1779837047000,-500.0,8.219e-05,2]
[423092133,1779837047000,-500.0,8.219e-05,2]
[423092127,1779837047000,-537.71,8.219e-05,2]
[423092119,1779837047000,-500.0,8.219e-05,2]
[423092122,1779837047000,-500.0,8.219e-05,2]
[423092128,1779837047000,-500.0,8.219e-05,2]
[423092120,1779837047000,-500.0,8.219e-05,2]
[423092135,1779837047000,-500.0,8.219e-05,2]
[423092117,1779837047000,-500.0,8.219e-05,2]
[423092118,1779837047000,-500.0,8.219e-05,2]
[423092126,1779837047000,-500.0,8.219e-05,2]
[423092158,1779837047000,-163.82146586,8.219e-05,2]
[423092123,1779837047000,-500.0,8.219e-05,2]
[423092129,1779837047000,-500.0,8.219e-05,2]
[423092125,1779837047000,-629.51686188,8.219e-05,2]
[423092131,1779837047000,-500.0,8.219e-05,2]
[423092136,1779837047000,-500.0,8.219e-05,2]
[423092121,1779837047000,-500.16800061,8.219e-05,2]
[423092145,1779837047000,-500.0,8.219e-05,2]
[423092148,1779837047000,-500.0,8.219e-05,2]
[423092140,1779837047000,-500.0,8.219e-05,2]
[423092157,1779837047000,-581.7,8.219e-05,2]
[423092146,1779837047000,-500.0,8.219e-05,2]
[423092147,1779837047000,-500.0,8.219e-05,2]
[423092141,1779837047000,-500.0,8.219e-05,2]
[423092143,1779837047000,-500.0,8.219e-05,2]
[423092149,1779837047000,-500.0,8.219e-05,2]
[423092139,1779837047000,-500.0,8.219e-05,2]
[423092142,1779837047000,-500.0,8.219e-05,2]
[423092137,1779837047000,-500.0,8.219e-05,2]
[423092144,1779837047000,-641.76372271,8.219e-05,2]
[423092134,1779837047000,-500.0,8.219e-05,2]
[423092138,1779837047000,-500.0,8.219e-05,2]
[423092132,1779837047000,-500.0,8.219e-05,2]
[423092205,1779837048000,-500.0,8.219e-05,2]
[423092204,1779837048000,-509.78,8.219e-05,2]
[423092203,1779837048000,-1764.84,8.219e-05,2]
[423092206,1779837048000,-500.0,8.219e-05,2]
[423092208,1779837048000,-500.0,8.219e-05,2]
[423092219,1779837048000,-152.71657739,8.219e-05,2]
[423092220,1779837048000,-500.0,8.219e-05,2]
[423092209,1779837048000,-500.0,8.219e-05,2]
[423092210,1779837048000,-500.0,8.219e-05,2]
[423092202,1779837048000,-500.39867058,8.219e-05,2]
[423092211,1779837048000,-500.0,8.219e-05,2]
[423092207,1779837048000,-500.0,8.219e-05,2]
[423092201,1779837048000,-500.0,8.219e-05,2]
[423092191,1779837048000,-500.0,8.219e-05,2]
[423092197,1779837048000,-500.0,8.219e-05,2]
[423092199,1779837048000,-500.0,8.219e-05,2]
[423092194,1779837048000,-500.0,8.219e-05,2]
[423092196,1779837048000,-500.0,8.219e-05,2]
[423092195,1779837048000,-368.83374241,8.219e-05,2]
[423092193,1779837048000,-500.0,8.219e-05,2]
[423092190,1779837048000,-500.0,8.219e-05,2]
[423092192,1779837048000,-500.0,8.219e-05,2]
[423092188,1779837048000,-500.0,8.219e-05,2]
[423092189,1779837048000,-500.0,8.219e-05,2]
[423092187,1779837048000,-500.0,8.219e-05,2]
[423092213,1779837048000,-500.0,8.219e-05,2]
[423092198,1779837048000,-500.0,8.219e-05,2]
[423092214,1779837048000,-500.0,8.219e-05,2]
[423092200,1779837048000,-500.0,8.219e-05,2]
[423092218,1779837048000,-500.0,8.219e-05,2]
[423092240,1779837048000,-500.0,8.219e-05,2]
[423092244,1779837048000,-561.09057494,8.219e-05,2]
[423092237,1779837048000,-500.0,8.219e-05,2]
[423092239,1779837048000,-397.46693606,8.219e-05,2]
[423092238,1779837048000,-102.53306394,8.219e-05,2]
[423092241,1779837048000,-500.0,8.219e-05,2]
[423092242,1779837048000,-500.0,8.219e-05,2]
[423092243,1779837048000,-500.0,8.219e-05,2]
[423092236,1779837048000,-413.59540326,8.219e-05,2]
[423092234,1779837048000,-500.69855527,8.219e-05,2]
[423092235,1779837048000,-500.0,8.219e-05,2]
[423092245,1779837048000,-885.98255832,8.219e-05,2]
[423092228,1779837048000,-500.0,8.219e-05,2]
[423092224,1779837048000,-502.55340743,8.219e-05,2]
[423092226,1779837048000,-500.0,8.219e-05,2]
[423092215,1779837048000,-593.9,8.219e-05,2]
[423092216,1779837048000,-626.8,8.219e-05,2]
[423092217,1779837048000,-500.0,8.219e-05,2]
[423092221,1779837048000,-500.0,8.219e-05,2]
[423092222,1779837048000,-500.0,8.219e-05,2]
[423092231,1779837048000,-500.99678708,8.219e-05,2]
[423092212,1779837048000,-460.53,8.219e-05,2]
[423092225,1779837048000,-500.71825508,8.219e-05,2]
[423092232,1779837048000,-500.0,8.219e-05,2]
[423092233,1779837048000,-658.49,8.219e-05,2]
[423092227,1779837048000,-500.0,8.219e-05,2]
[423092229,1779837048000,-565.05540216,8.219e-05,2]
[423092230,1779837048000,-500.0,8.219e-05,2]
[423092223,1779837048000,-500.0,8.219e-05,2]
[423092246,1779837085000,180.0,0.00014558,30]
[423092253,1779837378000,152.0,0.00014549,30]
[423092254,1779837381000,172.0,0.00014558,30]
[423092257,1779837747000,294.0,0.00014828,30]
[423092260,1779837923000,217.0,0.00014828,30]
[423092266,1779838043000,195.0,0.00014558,30]
[423092267,1779838223000,232.0,0.00014828,30]
[423092284,1779838232000,-433.45811007,7.319e-05,2]
[423092296,1779838232000,-500.0,7.504e-05,2]
[423092302,1779838232000,-173.55582793,7.504e-05,2]
[423092292,1779838232000,-4566.54188993,7.319e-05,2]
[423092308,1779838232000,-500.0,7.504e-05,2]
[423092306,1779838232000,-500.0,7.504e-05,2]